Cogmind - Beta 12 @@@ ROGUE MODE // 2023.03.23 @ 20:31:22 Player: Mr Goldstein Result: Self-destructed Performance ------------- Evolutions (1) 500 Regions Visited (2) 400 Robots Destroyed (21) 105 Value Destroyed (395) 395 Prototype IDs (0) 0 Alien Tech Used (0) 0 Bonus (0) 0 TOTAL SCORE: 1400 Bonus ------- None Cogmind --------- Core Integrity 371/400 Matter 144/300 Energy 250/250 System Corruption 7% Temperature Cool (0) Movement Rolling (95) Ox1 Location -9/Materials Parts ------- > --- POWER (1) -------- Ion Engine > --- PROPULSION (2) --- Wheel > --- UTILITY (4) ------ Heat Sink Small Storage Unit > --- WEAPON (2) ------- Heavy Assault Rifle Heavy Assault Rifle > --- INVENTORY (8) ---- Signal Interpreter Small Laser Small Laser Assault Rifle Datajack Peak State ------------ > --- POWER ------------ Ion Engine > --- PROPULSION ------- Wheel Wheel > --- UTILITY ---------- Heat Sink Small Storage Unit Hacking Suite Hacking Suite > --- WEAPON ----------- Heavy Assault Rifle Heavy Assault Rifle > --- INVENTORY -------- Signal Interpreter Small Laser Small Laser Assault Rifle Datajack [Rating: 15] Favorites ----------- Power Ion Engine Engine Ion Engine Propulsion Wheel Wheel Wheel Utility Small Storage Unit Device Heat Sink Storage Small Storage Unit Hackware Hacking Suite Weapon Heavy Assault Rifle Energy Gun Small Laser Ballistic Gun Heavy Assault Rifle Build | -11 -10 -9 ------- Run | Jun Mat Mat Slots Evolved 2 | . . 2 Power . | . . . Propulsion . | . . . Utility 2 | . . 2 Weapon . | . . . Parts Attached 13 | 6 5 2 Power 2 | 1 1 . Engine 2 | 1 1 . Core . | . . . Reactor . | . . . Propulsion 3 | 2 1 . Treads . | . . . Leg . | . . . Wheel 3 | 2 1 . Hover . | . . . Flight . | . . . Utility 4 | 1 1 2 Device 1 | . 1 . Storage 1 | 1 . . Processor . | . . . Hackware 2 | . . 2 Protection . | . . . Artifact . | . . . Weapon 4 | 2 2 . Energy Gun 1 | 1 . . Energy Cannon . | . . . Ballistic Gun 3 | 1 2 . Ballistic Cannon . | . . . Launcher . | . . . Special Weapon . | . . . Impact Weapon . | . . . Slashing Weapon . | . . . Piercing Weapon . | . . . Special Melee Weapon . | . . . Unidentified Prototypes . | . . . Parts Lost 5 | . 2 3 Power 1 | . 1 . Propulsion 2 | . 1 1 Utility 2 | . . 2 Weapon . | . . . Highest Loss Streak 3 | . 1 3 To Critical Strikes 1 | . 1 . Average Slot Usage (%) 92 | . 92 94 Engine 13 | . 13 11 Wheel 27 | . 27 20 Device 7 | . 7 11 Storage 13 | . 14 11 Hackware 1 | . . 18 Energy Gun 7 | . 7 . Ballistic Gun 20 | . 20 22 Naked Turns . | . . . Heaviest Build 17 | 13 17 17 Greatest Support 26 | 26 26 20 Greatest Overweight (x) 1 | . 1 . Average Overweight (x) . | . . . Largest Inventory Capacity 8 | 8 8 8 Average Capacity 7 | 6 8 8 Most Carried 7 | 5 7 6 Average Carried 4 | 1 4 5 Final Capacity 8 | 8 8 8 Final Carried 7 | 1 7 5 Class Distribution -------------------- 95% | Mutant 4% | Hacker-Mutant Dominant Class ---------------- Mutant | -10/Materials Hacker-Mutant | -9/Materials Resources | -11 -10 -9 ----------- Run | Jun Mat Mat Matter Collected 425 | 205 220 . Remotely . | . . . Salvage Created 572 | . 451 121 Parts 45 | . 37 8 Haulers Intercepted 1 | . 1 . Recyclers Shooed 2 | . 2 . Parts Field Recycled . | . . . Retrieved Matter . | . . . Parts Self-Destructed . | . . . Prevented . | . . . Kills | -11 -10 -9 ------- Run | Jun Mat Mat Combat Hostiles Destroyed 13 | . 11 2 Guns 13 | . 11 2 Classes Destroyed 6 | . 6 . Worker 2 | . 2 . Hauler 1 | . 1 . Operator 3 | . 3 . Watcher 2 | . 1 1 Swarmer 6 | . 6 . Grunt 7 | . 5 2 Best Kill Streak 8 | . 8 3 Combat Bots Only 7 | . 7 2 Max Kills in Single Turn 2 | . 2 1 Gunslinging 1 | . 1 . Exploded . | . . . Melee . | . . . Uniques/NPCs Destroyed . | . . . Combat | -11 -10 -9 -------- Run | Jun Mat Mat Damage Taken 583 | . 296 287 Core 103 | . 74 29 Absorbed by Shields . | . . . Core Remaining (%) 85 | 100 70 . Volleys Fired 66 | . 54 12 Largest 2 | . 2 2 Hottest 60 | . 60 46 Shots Fired 132 | . 108 24 Gun 132 | . 108 24 Cannon . | . . . Launcher . | . . . Special . | . . . Kinetic 88 | . 64 24 Thermal 44 | . 44 . Explosive . | . . . Electromagnetic . | . . . Robot Hit Streak 7 | . 7 7 Robot Miss Streak 6 | . 6 3 Penetration Max . | . . . Secondary Targets 3 | . 3 . Max Gunslinging Chain 1 | . 1 . Shots Hit Robots 77 | . 62 15 Core Hits 33 | . 29 4 Critical Kills 1 | . 1 . Critical Parts Destroyed . | . . . Critical Strikes 1 | . 1 . Destroy 1 | . 1 . Melee Attacks . | . . . Impact . | . . . Slashing . | . . . Piercing . | . . . Sneak Attacks . | . . . Combat Hostiles . | . . . Follow-up Attacks . | . . . Damage Inflicted 991 | . 744 247 Guns 985 | . 738 247 Cannons . | . . . Explosions . | . . . Melee . | . . . Ramming 6 | . 6 . Kinetic 683 | . 436 247 Thermal 302 | . 302 . Explosive . | . . . Electromagnetic . | . . . Impact . | . . . Slashing . | . . . Piercing . | . . . Highest Corruption 7 | . . 7 Average Corruption 3 | . . 3 Corruption Purged . | . . . Corruption Blocked . | . . . Effects 1 | . . 1 Matter Fused 1 | . . 1 Overload Shots . | . . . Overflow Damage . | . . . Projectiles . | . . . Explosions . | . . . Melee . | . . . Knockbacks . | . . . Impact . | . . . Kinetic . | . . . Secondary . | . . . Self-Inflicted Damage 2 | . 2 . Shots . | . . . Rammed 2 | . 2 . Targets Rammed 2 | . 2 . Kicked . | . . . Crushed . | . . . Highest Temperature 51 | . 51 . Average Temperature 33 | . 33 . Received Heat Transfer 81 | . 69 12 Siege Activations . | . . . Robots Corrupted . | . . . Combat Hostiles . | . . . Parts Fried . | . . . Impact Corruptions . | . . . Robots Melted . | . . . Combat Hostiles . | . . . Parts Melted . | . . . Heat Transferred 700 | . 700 . Parts Sabotaged . | . . . Parts Stolen . | . . . Parts Stripped . | . . . Power Chain Reactions . | . . . Missiles Intercepted . | . . . Alert | -11 -10 -9 ------- Run | Jun Mat Mat Peak Influence 185 | . 185 113 Initial 16 | . . 16 Average 73 | . 76 60 Maximum Alert Level . | . . . Low Security (%) 100 | 100 100 100 Level 1 . | . . . Level 2 . | . . . Level 3 . | . . . Level 4 . | . . . Level 5 . | . . . High Security . | . . . Max Security . | . . . Squads Dispatched 3 | . 3 . Investigation 1 | . 1 . Extermination . | . . . Reinforcement 2 | . 2 . Assault . | . . . Garrison . | . . . Intercept . | . . . Searches Triggered . | . . . Construction Impeded . | . . . Haulers Reinforced . | . . . Active Scanning Responses . | . . . Cargo Convoy Interrupts . | . . . Stealth | -11 -10 -9 --------- Run | Jun Mat Mat Distress Signals 4 | . 3 1 Communications Jammed . | . . . Distress Signals . | . . . Times Spotted 29 | . 21 8 Peak Tracking Total 6 | . 6 6 Tactical Retreats 2 | . 1 1 Traps | -11 -10 -9 ------- Run | Jun Mat Mat Traps Triggered 1 | . 1 . Indirectly . | . . . Trap Hack Attempts . | . . . Triggered . | . . . Disarmed 6 | . 6 . Reprogrammed . | . . . Reused . | . . . Traps Extracted . | . . . Installed . | . . . Triggered . | . . . Machines | -11 -10 -9 ---------- Run | Jun Mat Mat Machines Disabled . | . . . Max in Single Turn . | . . . Machines Repaired . | . . . Machines Sabotaged . | . . . Overloaded Fab Kills . | . . . Hacking | -11 -10 -9 --------- Run | Jun Mat Mat Machines Accessed 7 | . 7 . Terminals 7 | . 7 . Fabricators . | . . . Repair Stations . | . . . Recycling Units . | . . . Scanalyzers . | . . . Garrison Access . | . . . Total Hacks 17 | . 17 . Successful 11 | . 11 . Failed 6 | . 6 . Catastrophic . | . . . Database Lockouts . | . . . Manual 12 | . 12 . Terminals 17 | . 17 . Fabricators . | . . . Repair Stations . | . . . Recycling Units . | . . . Scanalyzers . | . . . Garrison Access . | . . . Terminal Hacks 4 | . 4 . Terminal Index 1 | . 1 . Locate Traps 1 | . 1 . Disarm Traps 1 | . 1 . Recall Investigation 1 | . 1 . Fabricator Hacks . | . . . Repair Station Hacks . | . . . Recycling Unit Hacks . | . . . Scanalyzer . | . . . Garrison Access Hacks . | . . . Unauthorized Hacks 7 | . 7 . Terminals 7 | . 7 . Assimilate 2 | . 2 . Botnet 4 | . 4 . Operators 1 | . 1 . Fabricators . | . . . Repair Stations . | . . . Recycling Units . | . . . Scanalyzers . | . . . Garrison Access . | . . . Data Cores Recovered . | . . . Used . | . . . Hacking Detections 5 | . 5 . Full Trace Events 1 | . 1 . Feedback Events . | . . . Feedback Blocked . | . . . Robot Schematics Acquired . | . . . Robots Built . | . . . Authchips . | . . . Time . | . . . Total Robot Build Rating . | . . . Part Schematics Acquired . | . . . Parts Built . | . . . Authchips . | . . . Time . | . . . Total Part Build Rating . | . . . Parts Repaired . | . . . Time . | . . . Parts Recycled . | . . . Recycled Matter . | . . . Retrieved Matter . | . . . Retrieved Components . | . . . Parts Scanalyzed . | . . . Part Schematics Acquired . | . . . Parts Damaged . | . . . Bothacking | -11 -10 -9 ------------ Run | Jun Mat Mat Used RIF Installer . | . . . Robots Hacked . | . . . Non-combat . | . . . Combat . | . . . Robot Hacks Applied . | . . . Relay Couplers Released . | . . . Fabnet Peak Effective % . | . . . Robots Rewired . | . . . Allies Hacked . | . . . Hacks Repelled . | . . . Allies | -11 -10 -9 -------- Run | Jun Mat Mat Total Allies . | . . . Largest Group . | . . . Highest-Rated Group . | . . . Highest-Rated Ally . | . . . Total Orders . | . . . Ally Attacks . | . . . Total Damage . | . . . Kills . | . . . Allies Corrupted . | . . . Allies Melted . | . . . Intel | -11 -10 -9 ------- Run | Jun Mat Mat Robot Analysis Total . | . . . Derelict Logs Recovered . | . . . Drone Launches . | . . . Drone Recoveries . | . . . Exploration | -11 -10 -9 ------------- Run | Jun Mat Mat Turns Passed 1544 | 60 1394 90 Spaces Moved 931 | 65 841 25 Core 28 | 28 . . Treads . | . . . Legs . | . . . Wheels 903 | 37 841 25 Hover . | . . . Flight . | . . . Fastest Speed 50 | 50 80 80 Average Speed 81 | 72 81 80 Slowest Speed 95 | 90 95 80 Overloaded Moves . | . . . Propulsion Burnouts . | . . . Robots Hopped . | . . . Cave-ins Triggered . | . . . Exploration Rate (%) 31 | 3 85 6 Regions Visited 2 Branch Regions . Pre-discovered Areas . | . . . Known Exits Taken . | . . . Unknown Exits Taken 2 | 1 1 . Scrap Searched . | . . . Spaces Dug . | . . . Terrain Destroyed . | . . . Melee . | . . . Projectile . | . . . AOE . | . . . Terrain Rammed . | . . . Walls Destroyed . | . . . Machines Disabled . | . . . Actions | -11 -10 -9 --------- Run | Jun Mat Mat Total 1584 | 77 1436 71 Wait 558 | . 526 32 Move 929 | 64 840 25 Hop . | . . . Pick Up 16 | 7 9 . Fast Attach . | . . . Attach 11 | 6 3 2 Detach . | . . . Swap 2 | . 2 . Drop . | . . . Fire 66 | . 54 12 Melee . | . . . Ram 2 | . 2 . Kick . | . . . Crush . | . . . Escape Stasis . | . . . Rewire . | . . . Trap . | . . . Miscellaneous . | . . . Route ------- -11/Junkyard -10/Materials (discovered 4 exits: [*Mat x2] / [*Min x2]) -9/Materials History --------- Turn | Location | Event 8 | -11/Junkyard | Discovered new exit (range 15) 61 | -11/Junkyard | Entered Materials 61 | -10/Materials | Discovered new exit (range 14) 309 | -10/Materials | Build established: Mutant 359 | -10/Materials | Destroyed 7 combat bots 599 | -10/Materials | Discovered new exit (range 13) 906 | -10/Materials | Discovered new exit (range 16) 1356 | -10/Materials | Discovered new exit (range 11) 1455 | -10/Materials | Entered another Materials area 1455 | -9/Materials | Evolved 2 slots: Utility x2 1545 | -9/Materials | Self-destructed Last Messages --------------- 01419_ Acquired 11 matter. 01450_ K-01 Serf collects debris. PARAMETERS=UTILITY+2 LOCATION=UNKNOWN GOAL=ESCAPE 01495_ W-16 Scout sends out distress signal. 01499_ W-16 Scout destroyed. 01518_ G-34 Mercenary destroyed. 01521_ Hacking Suite destroyed. 01521_ System corrupted by crushing effect (+2). 01524_ Knocked back. 01533_ C-30 ARC bursts open, deploying its payload. 01533_ S-10 Pest unfolds itself. 01536_ G-34 Mercenary destroyed. 01537_ Hacking Suite destroyed. 01537_ Wheel destroyed. 01537_ System corrupted by crushing effect (+3). 01537_ System corrupted by crushing effect (+2). 01537_ Knocked back. 01545_ System corrupted: Matter fused (-10). Map ----- +----------------------------------------------------+ | | | | | | | | | | | | | | | | | | | | | | | | | | | | | | | | | | | | | ?????????????????#########???????????????????????? | | ?????????????????# #??????????????????????? | | ?????????????????# """ #??????????????????????? | | ?????????????????# """ #???###???####?????????? | | ?????????????????# """ #?? ????????? | | ?????????????????# ## ????????? | | ?????????????##### """ s !! ""???????????? | | ?????????????# # """ @## !! ""???????????? | | ?????????????# # """ssb #????? ""???????????? | | ?????????????# # !=%[= #????????? ??????????? | | ?????????????# #####+##### ! ????????????? | | ?????????????# %= """???????????????? | | ?????????????# """???????????????? | | ?????????????# """???????????????? | | ?????????????######## ??????????????? | | ????????????????????#!% ?????????????? | | ????????????????????# ! ??????????????? | | ????????????????????# ?????????????? | | ???????????????????? ! ??????????????? | | ???????????????????? !??????????????? | | ???????????????????? ???????????????? | | ????????????????????##############???????????????? | | ?????????????????????????????????????????????????? | | ?????????????????????????????????????????????????? | | ?????????????????????????????????????????????????? | | ?????????????????????????????????????????????????? | | ?????????????????????????????????????????????????? | | ?????????????????????????????????????????????????? | | ?????????????????????????????????????????????????? | | ?????????????????????????????????????????????????? | | ?????????????????????????????????????????????????? | | ?????????????????????????????????????????????????? | +----------------------------------------------------+ Best States ------------- Heat Dissipation 38 Energy Generation 10 Energy Capacity 250 Matter Stores 300 Matter Capacity 300 Sight Range 16 Terrain Scan Density 10 Evasion (%) 50 Offensive Hacking 20 Item Schematics ----------------- None Robot Schematics ------------------ None Fabricated ------------ Nothing Alien Tech Used ----------------- None Achievements -------------- Quantum Hacking Challenges ------------ None Game ------ Seed PoweredCooledBlaster Manual? 0 Play Time 00:12:25 Cumulative 31.0 hours Start 2023.03.23 @ 20:19:40 End 2023.03.23 @ 20:31:22 Sessions 1 Manual Loads 0 Difficulty Rogue Special Mode None Game No. 43 Rogue 43 Adventurer 0 Explorer 0 Win Type - Total 0 Types 0/0/0/0/0/0/0/0/0 Lore% 29 Gallery% 31 Achievement% 30 Wizard Run 0 Options --------- ASCII 0 Keyboard 0 Movement Arrows Keybinds 0 Fullscreen 1 Font 12/Smallcaps Map View 83x54 Tactical HUD 1 Map Filters NONE Filters NONE Steam 1 RUN: f8996105-7697-492d-80b3-8f587eee1cf3